[Event "New York Summer IM-C 2022"]
[Site "New York"]
[Date "2022.07.10"]
[Round "5.4"]
[White "Martin Del Campo Cardenas, Roberto Abel"]
[Black "Poliannikov, Danila"]
[Result "1-0"]
[ECO "C81"]
[WhiteElo "2245"]
[BlackElo "2309"]
[Annotator "RC"]
[PlyCount "77"]
[EventDate "2022.07.08"]
[EventType "tourn"]
[EventCountry "USA"]
[SourceTitle "playchess.com"]
[Source "ChessBase"]
[SourceQuality "1"]
[TimeControl "5400+30"]

1. e4 {[%emt 0:00:03]} e5 {[%emt 0:00:02]} 2. Nf3 {[%emt 0:00:05]} Nc6 {[%emt 0:00:02]} 3. Bb5 {[%emt 0:00:09]} a6 {[%emt 0:00:02]} 4. Ba4 {[%emt 0:00:05]} Nf6 {[%emt 0:00:03]} 5. O-O {[%emt 0:00:36]} Nxe4 {[%emt 0:00:03]} 6. d4 {[%emt 0:00:11]} b5 {[%emt 0:00:03]} 7. Bb3 {[%emt 0:00:04]} d5 {[%emt 0:00:03]} 8. dxe5 {[%emt 0:00:06]} Be6 {[%emt 0:00:01]} 9. Nbd2 {[%emt 0:00:12]} Bc5 {[%emt 0:00:20]} 10. Qe2 {[%emt 0:00:16]} Bf5 {[%emt 0:00:12]} 11. a4 {[%emt 0:00:47]} Rb8 {[%emt 0:13:01]} 12. axb5 {[%emt 0:02:25]} axb5 {[%emt 0:00:05]} 13. Nxe4 {[%emt 0:10:10]} Bxe4 {[%emt 0:37:33]} 14. Be3 {[%emt 0:02:42]} Bxe3 {[%emt 0:01:15]} 15. Qxe3 {[%emt 0:00:11]} O-O {[%emt 0:00:03]} 16. Ng5 {[%emt 0:12:11]} Bg6 {[%emt 0:19:44]} 17. e6 {[%emt 0:04:37]} f6 {[%emt 0:01:39]} 18. e7 {[%emt 0:00:33]} Nxe7 {[%emt 0:06:07]} 19. Ne6 {[%emt 0:00:35]} Qd6 {[%emt 0:00:09]} 20. Nxf8 {[%emt 0:00:24]} Kxf8 {[%emt 0:00:15]} 21. Qa7 {[%emt 0:08:17]} Qb6 {[%emt 0:04:14]} 22. Rfe1 {[%emt 0:04:56]} Qxa7 {[%emt 0:01:48]} 23. Rxa7 {[%emt 0:00:04]} Rc8 {[%emt 0:00:04]} 24. c3 {[%emt 0:01:45]} Bf7 {[%emt 0:01:33]} 25. Bc2 {[%emt 0:02:06]} Be8 {[%emt 0:03:37]} 26. b4 {[%emt 0:01:39]} g6 {[%emt 0:02:44]} 27. f4 {[%emt 0:00:44]} Kf7 {[%emt 0:00:50]} 28. Bd3 {[%emt 0:01:40]} Bd7 {[%emt 0:00:51]} 29. Kf2 {[%emt 0:03:05]} Nc6 {[%emt 0:01:20]} 30. Rb7 {[%emt 0:06:33]} Nd8 {[%emt 0:01:53]} 31. Bxb5 {[%emt 0:00:23]} Nxb7 {[%emt 0:00:18]} 32. Bxd7 {[%emt 0:00:04]} Rd8 {[%emt 0:01:00]} 33. Bc6 {[%emt 0:00:30]} Nd6 {[%emt 0:00:30]} 34. Bxd5+ {[%emt 0:00:30]} Kf8 {[%emt 0:00:00]} 35. Re6 {[%emt 0:01:55]} Ne8 {[%emt 0:02:25]} 36. c4 {[%emt 0:01:19]} Rb8 {[%emt 0:02:49]} 37. b5 {[%emt 0:00:54]} Rb6 {[%emt 0:00:38]} 38. Rxb6 {[%emt 0:05:34]} cxb6 {[%emt 0:00:02]} 39. c5 {[%emt 0:00:03]} 1-0

[Event "New York Summer IM-C 2022"]
[Site "New York"]
[Date "2022.07.10"]
[Round "5.5"]
[White "Asavasaetakul, Chawit"]
[Black "Rozman, Levy"]
[Result "1/2-1/2"]
[ECO "D02"]
[WhiteElo "1948"]
[BlackElo "2333"]
[Annotator "RC"]
[PlyCount "84"]
[EventDate "2022.07.08"]
[EventType "tourn"]
[EventCountry "USA"]
[SourceTitle "playchess.com"]
[Source "ChessBase"]
[SourceQuality "1"]
[TimeControl "5400+30"]

1. d4 {[%emt 0:00:02]} d5 {[%emt 0:03:14]} 2. Nf3 {[%emt 0:00:08]} c5 {[%emt 0:03:50]} 3. c3 {[%emt 0:00:52]} Nf6 {[%emt 0:01:40]} 4. dxc5 {[%emt 0:00:07]} e6 {[%emt 0:01:06]} 5. b4 {[%emt 0:01:32]} a5 {[%emt 0:00:20]} 6. e3 {[%emt 0:01:08]} axb4 {[%emt 0:10:10]} 7. cxb4 {[%emt 0:00:09]} b6 {[%emt 0:00:05]} 8. Bb5+ {[%emt 0:00:45]} Bd7 {[%emt 0:00:50]} 9. Bxd7+ {[%emt 0:00:07]} Nbxd7 {[%emt 0:01:40]} 10. a4 {[%emt 0:00:12]} bxc5 {[%emt 0:00:24]} 11. b5 {[%emt 0:00:05]} Bd6 {[%emt 0:22:43]} 12. Bb2 {[%emt 0:01:01]} g5 {[%emt 0:05:04]} 13. e4 {[%emt 0:17:35]} g4 {[%emt 0:06:29]} 14. Nfd2 {[%emt 0:09:34]} Qc7 {[%emt 0:07:04]} 15. Qe2 {[%emt 0:21:50]} Rg8 {[%emt 0:17:15]} 16. g3 {[%emt 0:09:25]} Be5 {[%emt 0:03:46]} 17. Bxe5 {[%emt 0:05:52]} Nxe5 {[%emt 0:00:17]} 18. exd5 {[%emt 0:02:10]} Nf3+ {[%emt 0:00:26]} 19. Nxf3 {[%emt 0:06:01]} gxf3 {[%emt 0:00:02]} 20. d6 {[%emt 0:02:06]} Qxd6 {[%emt 0:00:53]} 21. Qxf3 {[%emt 0:00:21]} Qe5+ {[%emt 0:00:05]} 22. Kf1 {[%emt 0:00:17]} Ne4 {[%emt 0:01:06]} 23. Kg2 {[%emt 0:06:22]} Qxa1 {[%emt 0:01:07]} 24. Qxe4 {[%emt 0:00:08]} Qxa4 {[%emt 0:01:23]} 25. Qc6+ {[%emt 0:00:09]} Ke7 {[%emt 0:00:31]} 26. Qxc5+ {[%emt 0:00:34]} Kf6 {[%emt 0:00:25]} 27. Nc3 {[%emt 0:01:45]} Qg4 {[%emt 0:03:16]} 28. Re1 {[%emt 0:00:57]} Qf5 {[%emt 0:01:49]} 29. Qd4+ {[%emt 0:01:44]} Kg6 {[%emt 0:00:30]} 30. Re5 {[%emt 0:01:38]} Rad8 {[%emt 0:02:35]} 31. Qc5 {[%emt 0:02:22]} Qc2 {[%emt 0:01:21]} 32. Rg5+ {[%emt 0:01:14]} Kh6 {[%emt 0:00:20]} 33. h4 {[%emt 0:05:06]} f6 {[%emt 0:02:06]} 34. Rxg8 {[%emt 0:00:56]} Rxg8 {[%emt 0:00:02]} 35. b6 {[%emt 0:00:37]} Qb3 {[%emt 0:01:07]} 36. Qc7 {[%emt 0:00:59]} Rg4 {[%emt 0:01:50]} 37. Qc5 {[%emt 0:01:54]} e5 {[%emt 0:01:36]} 38. Qf8+ {[%emt 0:00:26]} Kg6 {[%emt 0:00:08]} 39. Qc8 {[%emt 0:01:05]} h5 {[%emt 0:00:28]} 40. b7 {[%emt 0:00:38]} Rb4 {[%emt 0:01:27]} 41. Qe8+ {[%emt 0:00:25]} Kg7 {[%emt 0:00:00]} 42. Qe7+ {[%emt 0:00:10]} Kg6 {[%emt 0:00:00]} 1/2-1/2

[Event "New York Summer IM-C 2022"]
[Site "New York"]
[Date "2022.07.10"]
[Round "6.1"]
[White "Huston, Gus"]
[Black "Rozman, Levy"]
[Result "1-0"]
[ECO "C07"]
[WhiteElo "2282"]
[BlackElo "2333"]
[Annotator "RC"]
[PlyCount "83"]
[EventDate "2022.07.08"]
[EventType "tourn"]
[EventCountry "USA"]
[SourceTitle "playchess.com"]
[Source "ChessBase"]
[SourceQuality "1"]
[TimeControl "5400+30"]

1. e4 {[%emt 0:00:03]} e6 {[%emt 0:01:47]} 2. d4 {[%emt 0:00:06]} d5 {[%emt 0:00:09]} 3. Nd2 {[%emt 0:00:04]} c5 {[%emt 0:00:05]} 4. exd5 {[%emt 0:00:04]} Qxd5 {[%emt 0:00:31]} 5. Ngf3 {[%emt 0:00:01]} cxd4 {[%emt 0:00:10]} 6. Bc4 {[%emt 0:00:04]} Qd7 {[%emt 0:00:23]} 7. O-O {[%emt 0:00:07]} Nc6 {[%emt 0:00:28]} 8. Nb3 {[%emt 0:00:12]} a6 {[%emt 0:00:10]} 9. Re1 {[%emt 0:01:01]} Bb4 {[%emt 0:04:08]} 10. Bd2 {[%emt 0:02:17]} Bxd2 {[%emt 0:01:31]} 11. Qxd2 {[%emt 0:00:02]} Nf6 {[%emt 0:02:21]} 12. Nbxd4 {[%emt 0:03:20]} Nxd4 {[%emt 0:00:34]} 13. Nxd4 {[%emt 0:00:08]} O-O {[%emt 0:05:21]} 14. Qf4 {[%emt 0:11:29]} Nd5 {[%emt 0:06:22]} 15. Qe5 {[%emt 0:04:00]} Rd8 {[%emt 0:06:07]} 16. Rad1 {[%emt 0:02:44]} Qc7 {[%emt 0:14:41]} 17. Qxc7 {[%emt 0:07:08]} Nxc7 {[%emt 0:00:06]} 18. Nb5 {[%emt 0:00:57]} Bd7 {[%emt 0:02:36]} 19. Nxc7 {[%emt 0:00:27]} Rac8 {[%emt 0:00:05]} 20. Nxe6 {[%emt 0:01:23]} Bxe6 {[%emt 0:00:17]} 21. Bxe6 {[%emt 0:00:47]} fxe6 {[%emt 0:00:38]} 22. c3 {[%emt 0:00:07]} Kf7 {[%emt 0:00:19]} 23. f3 {[%emt 0:00:15]} b5 {[%emt 0:02:19]} 24. Kf2 {[%emt 0:00:15]} Kf6 {[%emt 0:00:52]} 25. Ke2 {[%emt 0:01:49]} Ke7 {[%emt 0:05:01]} 26. Rxd8 {[%emt 0:00:46]} Rxd8 {[%emt 0:00:13]} 27. Rd1 {[%emt 0:00:02]} Rc8 {[%emt 0:00:19]} 28. Ke3 {[%emt 0:02:53]} e5 {[%emt 0:02:07]} 29. Rd3 {[%emt 0:01:33]} Ke6 {[%emt 0:00:38]} 30. b3 {[%emt 0:00:28]} g5 {[%emt 0:03:11]} 31. Ke4 {[%emt 0:02:49]} Rc5 {[%emt 0:05:59]} 32. g4 {[%emt 0:06:14]} a5 {[%emt 0:01:15]} 33. c4 {[%emt 0:08:33]} bxc4 {[%emt 0:01:49]} 34. Rc3 {[%emt 0:00:12]} Rd5 {[%emt 0:00:31]} 35. Rxc4 {[%emt 0:00:23]} Kd6 {[%emt 0:01:24]} 36. Rc8 {[%emt 0:03:40]} Rd4+ {[%emt 0:01:21]} 37. Ke3 {[%emt 0:00:06]} Ke6 {[%emt 0:00:52]} 38. Re8+ {[%emt 0:02:22]} Kf6 {[%emt 0:00:18]} 39. Ra8 {[%emt 0:00:09]} Rd5 {[%emt 0:00:56]} 40. Ra6+ {[%emt 0:00:08]} Kf7 {[%emt 0:00:09]} 41. Ke4 {[%emt 0:01:13]} Rc5 {[%emt 0:00:20]} 42. Kf5 {[%emt 0:00:20]} 1-0

[Event "New York Summer IM-C 2022"]
[Site "New York"]
[Date "2022.07.10"]
[Round "6.2"]
[White "Poliannikov, Danila"]
[Black "Asavasaetakul, Chawit"]
[Result "1-0"]
[ECO "B15"]
[WhiteElo "2309"]
[BlackElo "1948"]
[Annotator "RC"]
[PlyCount "79"]
[EventDate "2022.07.08"]
[EventType "tourn"]
[EventCountry "USA"]
[SourceTitle "playchess.com"]
[Source "ChessBase"]
[SourceQuality "1"]
[TimeControl "5400+30"]

1. e4 {[%emt 0:00:02]} c6 {[%emt 0:00:16]} 2. Nc3 {[%emt 0:00:04]} g6 {[%emt 0:00:05]} 3. d4 {[%emt 0:00:13]} d5 {[%emt 0:00:28]} 4. e5 {[%emt 0:00:58]} Bg7 {[%emt 0:00:34]} 5. f4 {[%emt 0:00:06]} h5 {[%emt 0:00:06]} 6. Nf3 {[%emt 0:00:16]} Bg4 {[%emt 0:00:08]} 7. Be2 {[%emt 0:00:11]} e6 {[%emt 0:00:06]} 8. O-O {[%emt 0:00:20]} Nd7 {[%emt 0:00:52]} 9. Be3 {[%emt 0:16:13]} Ne7 {[%emt 0:02:11]} 10. h3 {[%emt 0:00:41]} Bxf3 {[%emt 0:00:10]} 11. Bxf3 {[%emt 0:00:14]} Nf5 {[%emt 0:02:02]} 12. Bf2 {[%emt 0:00:20]} h4 {[%emt 0:02:20]} 13. Ne2 {[%emt 0:01:21]} b5 {[%emt 0:14:38]} 14. c3 {[%emt 0:14:37]} a5 {[%emt 0:01:42]} 15. Qd3 {[%emt 0:13:54]} Nb6 {[%emt 0:02:20]} 16. b3 {[%emt 0:00:26]} a4 {[%emt 0:11:55]} 17. Bg4 {[%emt 0:02:57]} Ra7 {[%emt 0:02:56]} 18. Kh1 {[%emt 0:07:31]} Qa8 {[%emt 0:03:11]} 19. Qd1 {[%emt 0:05:32]} Bf8 {[%emt 0:06:27]} 20. Ng1 {[%emt 0:01:47]} Be7 {[%emt 0:01:00]} 21. Be2 {[%emt 0:01:00]} axb3 {[%emt 0:08:38]} 22. axb3 {[%emt 0:00:10]} O-O {[%emt 0:01:16]} 23. Bd3 {[%emt 0:02:17]} Ra3 {[%emt 0:05:12]} 24. Bxf5 {[%emt 0:03:37]} exf5 {[%emt 0:00:24]} 25. Nf3 {[%emt 0:00:14]} Qa5 {[%emt 0:05:45]} 26. Bxh4 {[%emt 0:08:52]} Bxh4 {[%emt 0:00:31]} 27. Nxh4 {[%emt 0:00:03]} Ra8 {[%emt 0:01:57]} 28. Rc1 {[%emt 0:03:15]} b4 {[%emt 0:06:10]} 29. g4 {[%emt 0:02:15]} bxc3 {[%emt 0:04:44]} 30. gxf5 {[%emt 0:00:10]} c2 {[%emt 0:05:14]} 31. Rxc2 {[%emt 0:07:58]} Qb5 {[%emt 0:02:47]} 32. fxg6 {[%emt 0:03:48]} Ra1 {[%emt 0:00:10]} 33. gxf7+ {[%emt 0:00:05]} Kf8 {[%emt 0:00:07]} 34. Rc1 {[%emt 0:00:13]} Rxc1 {[%emt 0:00:44]} 35. Qxc1 {[%emt 0:00:01]} Qd3 {[%emt 0:01:27]} 36. Rf3 {[%emt 0:02:23]} Qxd4 {[%emt 0:00:32]} 37. e6 {[%emt 0:00:02]} Qe4 {[%emt 0:00:58]} 38. Qe3 {[%emt 0:03:55]} Ra1+ {[%emt 0:01:33]} 39. Kh2 {[%emt 0:00:02]} Ra2+ {[%emt 0:01:56]} 40. Kg3 {[%emt 0:00:06]} 1-0

[Event "New York Summer IM-C 2022"]
[Site "New York"]
[Date "2022.07.10"]
[Round "6.3"]
[White "Bortnyk, Mykola"]
[Black "Martin Del Campo Cardenas, Roberto Abel"]
[Result "1/2-1/2"]
[ECO "A48"]
[WhiteElo "2463"]
[BlackElo "2245"]
[Annotator "RC"]
[PlyCount "80"]
[EventDate "2022.07.08"]
[EventType "tourn"]
[EventCountry "USA"]
[SourceTitle "playchess.com"]
[Source "ChessBase"]
[SourceQuality "1"]
[TimeControl "5400+30"]

1. d4 {[%emt 0:02:13]} Nf6 {[%emt 1:31:00]} 2. Nf3 {[%emt 0:00:08]} g6 {[%emt 0:00:00]} 3. Nc3 {[%emt 0:02:06]} c5 {[%emt 0:00:00]} 4. g3 {[%emt 0:01:57]} cxd4 {[%emt 0:00:00]} 5. Nxd4 {[%emt 0:00:30]} Bg7 {[%emt 0:00:00]} 6. Bg2 {[%emt 0:00:25]} O-O {[%emt 0:00:00]} 7. e4 {[%emt 0:00:16]} Nc6 {[%emt 0:00:00]} 8. Nde2 {[%emt 0:00:18]} Rb8 {[%emt 0:00:00]} 9. a4 {[%emt 0:02:10]} a6 {[%emt 0:00:00]} 10. b3 {[%emt 0:03:32]} b5 {[%emt 0:00:00]} 11. axb5 {[%emt 0:00:26]} axb5 {[%emt 0:00:00]} 12. Bb2 {[%emt 0:05:01]} b4 {[%emt 0:00:00]} 13. Nb1 {[%emt 0:01:48]} Qb6 {[%emt 0:00:00]} 14. O-O {[%emt 0:00:34]} Ba6 {[%emt 0:00:00]} 15. Nd2 {[%emt 0:01:17]} Rfd8 {[%emt 0:00:00]} 16. Ra2 {[%emt 0:04:51]} Ra8 {[%emt 0:00:00]} 17. Qa1 {[%emt 0:05:22]} Ra7 {[%emt 0:00:00]} 18. Re1 {[%emt 0:08:01]} Rda8 {[%emt 0:00:00]} 19. Bd4 {[%emt 0:07:55]} Nxd4 {[%emt 0:00:00]} 20. Qxd4 {[%emt 0:00:02]} Qxd4 {[%emt 0:00:00]} 21. Nxd4 {[%emt 0:00:04]} Bb7 {[%emt 0:00:00]} 22. Rxa7 {[%emt 0:52:34]} Rxa7 {[%emt 0:00:00]} 23. e5 {[%emt 0:00:00]} Bxg2 {[%emt 0:00:00]} 24. Kxg2 {[%emt 0:00:00]} Nd5 {[%emt 0:00:00]} 25. Nc4 {[%emt 0:00:00]} e6 {[%emt 0:00:00]} 26. Nb5 {[%emt 0:00:00]} Ra2 {[%emt 0:00:00]} 27. Re2 {[%emt 0:00:00]} f6 {[%emt 0:00:00]} 28. f4 {[%emt 0:00:00]} Bf8 {[%emt 0:00:00]} 29. Nbd6 {[%emt 0:00:00]} Bxd6 {[%emt 0:00:00]} 30. Nxd6 {[%emt 0:00:00]} fxe5 {[%emt 0:00:00]} 31. fxe5 {[%emt 0:00:00]} Rxc2 {[%emt 0:00:00]} 32. Rxc2 {[%emt 0:00:00]} Ne3+ {[%emt 0:00:00]} 33. Kf2 {[%emt 0:00:00]} Nxc2 {[%emt 0:16:00]} 34. Nb5 {[%emt 0:00:00]} Na1 {[%emt 0:00:00]} 35. Nd4 {[%emt 0:00:00]} Kf7 {[%emt 0:00:00]} 36. Ke2 {[%emt 0:00:00]} d6 {[%emt 0:00:00]} 37. exd6 {[%emt 0:00:00]} e5 {[%emt 0:00:00]} 38. d7 {[%emt 0:00:00]} Ke7 {[%emt 0:00:00]} 39. Nc6+ {[%emt 0:00:00]} Kxd7 {[%emt 0:00:00]} 40. Nxe5+ {[%emt 0:00:00]} Ke6 {[%emt 0:00:00]} 1/2-1/2

[Event "New York Summer IM-C 2022"]
[Site "New York"]
[Date "2022.07.10"]
[Round "6.4"]
[White "Le, Nguyen Khoi Nguyen"]
[Black "Nakada, Akira"]
[Result "0-1"]
[ECO "B12"]
[WhiteElo "2001"]
[BlackElo "2297"]
[Annotator "RC"]
[PlyCount "38"]
[EventDate "2022.07.08"]
[EventType "tourn"]
[EventCountry "USA"]
[SourceTitle "playchess.com"]
[Source "ChessBase"]
[SourceQuality "1"]
[TimeControl "5400+30"]

1. e4 {[%emt 0:03:12]} c6 {[%emt 0:04:32]} 2. d4 {[%emt 0:00:17]} d5 {[%emt 0:00:36]} 3. e5 {[%emt 0:00:01]} c5 {[%emt 0:00:08]} 4. dxc5 {[%emt 0:00:05]} e6 {[%emt 0:00:16]} 5. Be3 {[%emt 0:00:04]} Nd7 {[%emt 0:00:20]} 6. Bb5 {[%emt 0:00:09]} Ne7 {[%emt 0:00:07]} 7. Nf3 {[%emt 0:00:46]} Nf5 {[%emt 0:00:53]} 8. b4 {[%emt 0:24:35]} Nxe3 {[%emt 0:00:14]} 9. fxe3 {[%emt 0:00:02]} a5 {[%emt 0:00:00]} 10. c3 {[%emt 0:00:52]} g6 {[%emt 0:03:47]} 11. O-O {[%emt 0:01:14]} Bg7 {[%emt 0:00:14]} 12. Qd4 {[%emt 0:03:05]} O-O {[%emt 0:00:27]} 13. e4 {[%emt 0:10:08]} Nxe5 {[%emt 0:01:20]} 14. Nxe5 {[%emt 0:02:47]} Qc7 {[%emt 0:00:16]} 15. Nd2 {[%emt 0:18:35]} Bxe5 {[%emt 0:00:35]} 16. Qe3 {[%emt 0:00:24]} axb4 {[%emt 0:01:59]} 17. Nf3 {[%emt 0:05:05]} Bxc3 {[%emt 0:02:12]} 18. e5 {[%emt 0:00:21]} Bxa1 {[%emt 0:00:43]} 19. Rxa1 {[%emt 0:00:25]} Ra5 {[%emt 0:01:28]} 0-1

[Event "New York Summer IM-C 2022"]
[Site "New York"]
[Date "2022.07.10"]
[Round "6.5"]
[White "Hardaway, Brewington"]
[Black "Adewumi, Tanitoluwa"]
[Result "1/2-1/2"]
[ECO "B48"]
[WhiteElo "2175"]
[BlackElo "2309"]
[Annotator "RC"]
[PlyCount "85"]
[EventDate "2022.07.08"]
[EventType "tourn"]
[EventCountry "USA"]
[SourceTitle "playchess.com"]
[Source "ChessBase"]
[SourceQuality "1"]
[TimeControl "5400+30"]

1. e4 {[%emt 0:00:03]} c5 {[%emt 0:00:06]} 2. Nf3 {[%emt 0:00:03]} e6 {[%emt 0:00:07]} 3. d4 {[%emt 0:00:07]} cxd4 {[%emt 0:00:03]} 4. Nxd4 {[%emt 0:00:04]} Nc6 {[%emt 0:00:06]} 5. Nc3 {[%emt 0:00:04]} Qc7 {[%emt 0:00:05]} 6. Be3 {[%emt 0:00:03]} a6 {[%emt 0:00:03]} 7. g4 {[%emt 0:00:04]} b5 {[%emt 0:00:04]} 8. Nxc6 {[%emt 0:00:04]} dxc6 {[%emt 0:00:05]} 9. Qf3 {[%emt 0:00:04]} e5 {[%emt 0:00:09]} 10. h4 {[%emt 0:01:53]} Nf6 {[%emt 0:01:09]} 11. Rg1 {[%emt 0:05:09]} h5 {[%emt 0:06:31]} 12. gxh5 {[%emt 0:00:20]} Nxh5 {[%emt 0:00:22]} 13. O-O-O {[%emt 0:07:45]} g6 {[%emt 0:04:40]} 14. Kb1 {[%emt 0:11:41]} Be7 {[%emt 0:01:18]} 15. Rh1 {[%emt 0:17:01]} Be6 {[%emt 0:01:47]} 16. Bh3 {[%emt 0:09:28]} Qc8 {[%emt 0:02:00]} 17. Ne2 Bxh3 {[%emt 0:01:19]} 18. Rxh3 {[%emt 0:02:39]} Qe6 {[%emt 0:01:36]} 19. Rhh1 {[%emt 0:01:54]} a5 {[%emt 0:05:08]} 20. Nc1 {[%emt 0:03:31]} Nf6 {[%emt 0:10:08]} 21. Nd3 {[%emt 0:04:38]} O-O-O {[%emt 0:05:52]} 22. Bd2 {[%emt 0:11:06]} Kb7 {[%emt 0:11:58]} 23. b3 {[%emt 0:19:11]} b4 {[%emt 0:04:53]} 24. Bg5 {[%emt 0:01:26]} Nd7 {[%emt 0:01:48]} 25. Bxe7 {[%emt 0:00:15]} Qxe7 {[%emt 0:00:08]} 26. h5 {[%emt 0:00:14]} gxh5 {[%emt 0:03:41]} 27. Rxh5 {[%emt 0:00:01]} Rxh5 {[%emt 0:00:14]} 28. Qxh5 {[%emt 0:00:01]} Nf6 {[%emt 0:00:52]} 29. Qf5 {[%emt 0:00:33]} Rd4 {[%emt 0:01:19]} 30. Nc5+ {[%emt 0:03:50]} Qxc5 {[%emt 0:00:36]} 31. Rxd4 {[%emt 0:00:01]} Qxd4 {[%emt 0:00:15]} 32. Qxf6 {[%emt 0:00:03]} Qd1+ {[%emt 0:00:27]} 33. Kb2 {[%emt 0:00:01]} Qd4+ {[%emt 0:00:12]} 34. Kb1 {[%emt 0:00:00]} Qxe4 {[%emt 0:00:22]} 35. Qxf7+ {[%emt 0:00:06]} Kb6 {[%emt 0:00:13]} 36. Qf8 {[%emt 0:00:15]} Qe1+ {[%emt 0:00:08]} 37. Kb2 {[%emt 0:00:01]} Qc3+ {[%emt 0:00:09]} 38. Kb1 {[%emt 0:00:01]} Qc5 {[%emt 0:01:22]} 39. Qb8+ {[%emt 0:00:05]} Ka6 {[%emt 0:00:06]} 40. Qa8+ {[%emt 0:00:09]} Kb6 {[%emt 0:01:15]} 41. Qb8+ {[%emt 0:00:07]} Ka6 {[%emt 0:00:06]} 42. Qa8+ {[%emt 0:00:04]} Kb5 {[%emt 0:02:20]} 43. Qb8+ {[%emt 0:00:35]} 1/2-1/2

[Event "New York Summer IM-C 2022"]
[Site "New York"]
[Date "2022.07.11"]
[Round "7.1"]
[White "Adewumi, Tanitoluwa"]
[Black "Huston, Gus"]
[Result "1/2-1/2"]
[ECO "C54"]
[WhiteElo "2309"]
[BlackElo "2282"]
[Annotator "RC"]
[PlyCount "172"]
[EventDate "2022.07.08"]
[EventType "tourn"]
[EventCountry "USA"]
[SourceTitle "playchess.com"]
[Source "ChessBase"]
[SourceQuality "1"]
[TimeControl "5400+30"]

1. e4 {[%emt 0:00:00]} e5 {[%emt 0:00:18]} 2. Nf3 {[%emt 0:00:12]} Nc6 {[%emt 0:00:10]} 3. Bc4 {[%emt 0:00:11]} Bc5 {[%emt 0:00:06]} 4. O-O {[%emt 0:00:07]} Nf6 {[%emt 0:00:03]} 5. d3 {[%emt 0:00:09]} d6 {[%emt 0:00:05]} 6. c3 {[%emt 0:00:12]} a5 {[%emt 0:00:24]} 7. h3 {[%emt 0:00:14]} h6 {[%emt 0:00:18]} 8. Re1 {[%emt 0:00:05]} O-O {[%emt 0:00:07]} 9. Bb5 {[%emt 0:00:19]} Ne7 {[%emt 0:00:11]} 10. d4 {[%emt 0:00:16]} Ba7 {[%emt 0:00:35]} 11. Nbd2 {[%emt 0:00:21]} Ng6 {[%emt 1:33:43]} 12. Nf1 c6 {[%emt 0:00:00]} 13. Bd3 {[%emt 0:00:23]} Re8 {[%emt 0:00:00]} 14. Ng3 {[%emt 0:00:14]} Qc7 {[%emt 0:00:00]} 15. Bd2 {[%emt 0:01:20]} Bd7 {[%emt 0:00:00]} 16. Qc1 {[%emt 0:01:31]} Kh7 {[%emt 0:00:00]} 17. Nf5 {[%emt 0:04:29]} Bxf5 {[%emt 0:00:00]} 18. exf5 {[%emt 0:03:48]} Nf8 {[%emt 0:00:00]} 19. dxe5 {[%emt 0:02:38]} dxe5 {[%emt 0:00:00]} 20. Bc2 {[%emt 0:01:20]} Rad8 {[%emt 0:00:00]} 21. Be3 {[%emt 0:01:00]} Bb8 {[%emt 0:00:00]} 22. Nd2 {[%emt 0:02:13]} e4 {[%emt 0:00:00]} 23. Nf1 {[%emt 0:00:48]} N8d7 {[%emt 0:00:00]} 24. Ng3 {[%emt 0:13:31]} c5 {[%emt 0:00:00]} 25. a4 {[%emt 0:13:04]} Nb6 {[%emt 0:00:00]} 26. Rb1 {[%emt 0:19:48]} Nbd5 {[%emt 0:00:00]} 27. Nf1 {[%emt 0:08:26]} Ne7 {[%emt 0:00:00]} 28. Ng3 {[%emt 0:10:37]} Ned5 {[%emt 0:00:00]} 29. Nf1 {[%emt 0:02:04]} Qc8 {[%emt 0:00:00]} 30. Ng3 {[%emt 0:01:23]} b6 {[%emt 0:00:00]} 31. Rf1 {[%emt 0:03:29]} Qc7 {[%emt 0:00:00]} 32. Re1 {[%emt 0:01:06]} Rd7 {[%emt 0:00:00]} 33. Bb3 {[%emt 0:02:18]} Qc6 {[%emt 0:00:00]} 34. Ra1 {[%emt 0:03:43]} c4 {[%emt 0:00:00]} 35. Bc2 {[%emt 0:00:49]} h5 {[%emt 0:02:31]} 36. Bd4 {[%emt 0:00:52]} Bxg3 {[%emt 0:01:46]} 37. fxg3 {[%emt 0:00:12]} e3 {[%emt 0:00:58]} 38. Qd1 {[%emt 0:00:22]} Rde7 {[%emt 0:01:15]} 39. Qf3 {[%emt 0:01:03]} e2 {[%emt 0:00:02]} 40. g4 {[%emt 0:01:22]} hxg4 {[%emt 0:02:44]} 41. hxg4 {[%emt 0:00:07]} Re3 {[%emt 0:01:22]} 42. Bxe3 {[%emt 0:03:02]} Rxe3 {[%emt 0:00:02]} 43. Qf2 {[%emt 0:00:21]} Nxg4 {[%emt 0:01:26]} 44. Qh4+ {[%emt 0:00:10]} Nh6 {[%emt 0:00:10]} 45. Qd4 {[%emt 0:00:38]} Qc5 {[%emt 0:02:09]} 46. Qxc5 {[%emt 0:01:19]} bxc5 {[%emt 0:00:01]} 47. Bb1 {[%emt 0:01:26]} Nf4 {[%emt 0:00:37]} 48. Ba2 {[%emt 0:00:25]} Re4 {[%emt 0:01:25]} 49. Kf2 {[%emt 0:00:42]} Nd3+ {[%emt 0:01:33]} 50. Kf3 {[%emt 0:00:08]} Rf4+ {[%emt 0:00:20]} 51. Ke3 {[%emt 0:00:44]} Nxf5+ {[%emt 0:00:14]} 52. Kd2 {[%emt 0:00:09]} Ng3 {[%emt 0:00:24]} 53. Bb1 {[%emt 0:01:11]} Ne4+ {[%emt 0:00:54]} 54. Kxe2 {[%emt 0:00:36]} Nxe1 {[%emt 0:00:21]} 55. g3 {[%emt 0:00:29]} Rg4 {[%emt 0:00:14]} 56. Kxe1 {[%emt 0:00:07]} f5 {[%emt 0:00:01]} 57. Bxe4 {[%emt 0:00:16]} Rxe4+ {[%emt 0:00:07]} 58. Kf2 {[%emt 0:00:04]} Re6 {[%emt 0:00:32]} 59. Rd1 {[%emt 0:00:16]} Rb6 {[%emt 0:00:13]} 60. Rd2 {[%emt 0:00:08]} Kg6 {[%emt 0:00:08]} 61. Kf3 {[%emt 0:00:11]} Kg5 {[%emt 0:00:10]} 62. Rd5 {[%emt 0:00:16]} Rxb2 {[%emt 0:00:48]} 63. Rxc5 {[%emt 0:00:11]} Ra2 {[%emt 0:00:52]} 64. Rxc4 {[%emt 0:00:08]} g6 {[%emt 0:01:21]} 65. g4 {[%emt 0:00:53]} Rh2 {[%emt 0:00:30]} 66. gxf5 {[%emt 0:00:09]} gxf5 {[%emt 0:00:03]} 67. Rc5 {[%emt 0:00:42]} Rh3+ {[%emt 0:00:12]} 68. Kg2 {[%emt 0:00:06]} Rd3 {[%emt 0:00:09]} 69. Rc4 {[%emt 0:00:25]} f4 {[%emt 0:00:55]} 70. Rc8 {[%emt 0:00:05]} Kf5 {[%emt 0:00:17]} 71. Kf2 {[%emt 0:00:11]} Ke4 {[%emt 0:00:18]} 72. Rc4+ {[%emt 0:00:08]} Ke5 {[%emt 0:00:29]} 73. Rc5+ {[%emt 0:00:11]} Ke4 {[%emt 0:00:01]} 74. Rc4+ {[%emt 0:00:10]} Kf5 {[%emt 0:00:04]} 75. Rc8 {[%emt 0:00:34]} Rh3 {[%emt 0:00:12]} 76. Ke2 {[%emt 0:00:19]} Re3+ {[%emt 0:00:36]} 77. Kf2 {[%emt 0:00:11]} Ke4 {[%emt 0:00:38]} 78. Rc4+ {[%emt 0:00:23]} Kd3 {[%emt 0:01:56]} 79. Rxf4 {[%emt 0:00:22]} Re2+ {[%emt 0:00:02]} 80. Kf3 {[%emt 0:06:38]} Ra2 {[%emt 0:00:02]} 81. c4 {[%emt 0:00:00]} Rxa4 {[%emt 0:02:12]} 82. c5 {[%emt 0:00:00]} Ra3 {[%emt 0:00:27]} 83. Kg2 {[%emt 0:00:00]} Ra2+ {[%emt 0:00:27]} 84. Rf2 {[%emt 0:00:00]} Ra1 {[%emt 0:00:37]} 85. Rf1 {[%emt 0:00:00]} Rxf1 {[%emt 0:00:30]} 86. Kxf1 {[%emt 0:00:00]} a4 {[%emt 0:00:03]} 1/2-1/2